[Event "Chinese Team-ch Men 2025"]
[Site "Zhang Jiakou Hebei"]
[Date "2025.04.28"]
[Round "4.4"]
[White "Gong, Sunle"]
[Black "Zhang, Di"]
[Result "1/2-1/2"]
[Annotator "RC"]
[ECO "D85"]
[WhiteElo "2410"]
[BlackElo "2406"]
[PlyCount "126"]
[EventDate "2025.04.26"]
[EventType "team-tourn"]
[EventCountry "CHN"]
[SourceTitle "playchess.com"]
[Source "ChessBase"]
[SourceQuality "1"]
[TimeControl "5400+30"]

1. d4 {[%emt 0:00:05]} Nf6 {[%emt 0:00:09]} 2. c4 {[%emt 0:00:07]} g6 {[%emt 0:00:03]} 3. Nc3 {[%emt 0:00:34]} d5 {[%emt 0:00:07]} 4. cxd5 {[%emt 0:03:45]} Nxd5 {[%emt 0:00:06]} 5. e4 {[%emt 0:03:04]} Nxc3 {[%emt 0:00:08]} 6. bxc3 {[%emt 0:00:02]} Bg7 {[%emt 0:00:05]} 7. Nf3 {[%emt 0:00:37]} c5 {[%emt 0:00:37]} 8. Be3 {[%emt 0:02:51]} Bg4 {[%emt 0:00:09]} 9. Qd2 {[%emt 0:06:24]} cxd4 {[%emt 0:00:43]} 10. cxd4 {[%emt 0:00:20]} Nc6 {[%emt 0:00:05]} 11. Rd1 {[%emt 0:01:15]} O-O {[%emt 0:00:23]} 12. Be2 {[%emt 0:04:37]} Qa5 {[%emt 0:00:20]} 13. O-O {[%emt 0:01:26]} Rfc8 {[%emt 0:11:28]} 14. Qxa5 {[%emt 0:05:49]} Nxa5 {[%emt 0:00:04]} 15. Rc1 {[%emt 0:00:12]} Nc6 {[%emt 0:25:13]} 16. Rfd1 {[%emt 0:06:24]} Nb4 {[%emt 0:00:27]} 17. Bc4 {[%emt 0:01:10]} b5 {[%emt 0:00:39]} 18. Bxb5 {[%emt 0:06:51]} Nxa2 {[%emt 0:09:11]} 19. Rxc8+ {[%emt 0:00:31]} Rxc8 {[%emt 0:01:57]} 20. Ra1 {[%emt 0:00:15]} Nc3 {[%emt 0:01:12]} 21. Bd3 {[%emt 0:01:35]} Rd8 {[%emt 0:01:46]} 22. Ra3 {[%emt 0:06:37]} Nd1 {[%emt 0:02:21]} 23. e5 {[%emt 0:08:35]} Nxe3 {[%emt 0:25:28]} 24. fxe3 {[%emt 0:00:07]} Rd7 {[%emt 0:00:06]} 25. Nd2 {[%emt 0:03:46]} Rc7 {[%emt 0:01:22]} 26. Kf2 {[%emt 0:01:15]} Be6 {[%emt 0:01:34]} 27. Ne4 {[%emt 0:05:40]} Bf8 {[%emt 0:03:02]} 28. Ra5 {[%emt 0:01:27]} Kg7 {[%emt 0:05:24]} 29. Nc5 {[%emt 0:08:04]} Bc8 {[%emt 0:00:05]} 30. d5 {[%emt 0:07:04]} f6 {[%emt 0:00:06]} 31. e6 {[%emt 0:00:35]} f5 {[%emt 0:00:05]} 32. Ba6 {[%emt 0:00:36]} Rxc5 {[%emt 0:04:21]} 33. Rxc5 {[%emt 0:00:04]} Bxa6 {[%emt 0:00:03]} 34. d6 {[%emt 0:01:01]} exd6 {[%emt 0:00:06]} 35. Rc7+ {[%emt 0:00:03]} Kf6 {[%emt 0:00:04]} 36. Rf7+ {[%emt 0:04:28]} Kxe6 {[%emt 0:00:03]} 37. Rxf8 {[%emt 0:00:04]} Bd3 {[%emt 0:00:16]} 38. Rh8 {[%emt 0:01:37]} h5 {[%emt 0:00:50]} 39. h4 {[%emt 0:00:40]} Kf6 {[%emt 0:05:59]} 40. Re8 {[%emt 0:05:18]} Be4 {[%emt 0:00:18]} 41. Kg3 {[%emt 0:01:40]} a5 {[%emt 0:00:32]} 42. Rb8 {[%emt 0:01:14]} a4 {[%emt 0:00:21]} 43. Rb4 {[%emt 0:02:10]} Bc2 {[%emt 0:00:11]} 44. Rb5 {[%emt 0:00:23]} Bb3 {[%emt 0:03:27]} 45. Kf4 {[%emt 0:00:13]} Bc2 {[%emt 0:00:09]} 46. Ra5 {[%emt 0:00:50]} Bb3 {[%emt 0:00:06]} 47. Ra6 {[%emt 0:00:21]} Ke6 {[%emt 0:00:13]} 48. Kg5 {[%emt 0:01:00]} Ke5 {[%emt 0:00:23]} 49. g3 {[%emt 0:01:31]} Bd1 {[%emt 0:01:17]} 50. Kxg6 {[%emt 0:00:13]} d5 {[%emt 0:00:16]} 51. Kg5 {[%emt 0:00:46]} Ke4 {[%emt 0:00:02]} 52. Ra5 {[%emt 0:00:32]} Ke5 {[%emt 0:01:20]} 53. Ra7 {[%emt 0:00:24]} Ke4 {[%emt 0:00:04]} 54. Re7+ {[%emt 0:00:30]} Kd3 {[%emt 0:00:09]} 55. Kxf5 {[%emt 0:00:35]} Kc3 {[%emt 0:00:19]} 56. Ke5 {[%emt 0:00:33]} Bb3 {[%emt 0:01:32]} 57. Ra7 {[%emt 0:00:32]} Kb2 {[%emt 0:00:11]} 58. e4 {[%emt 0:00:34]} dxe4 {[%emt 0:00:17]} 59. Kxe4 {[%emt 0:00:03]} a3 {[%emt 0:00:11]} 60. g4 {[%emt 0:00:10]} hxg4 {[%emt 0:00:22]} 61. Kf4 {[%emt 0:00:33]} a2 {[%emt 0:00:35]} 62. Rxa2+ {[%emt 0:00:08]} Kxa2 {[%emt 0:00:02]} 63. Kxg4 {[%emt 0:00:05]} Kb2 {[%emt 0:00:05]} 1/2-1/2

[Event "Chinese Team-ch Men 2025"]
[Site "Zhang Jiakou Hebei"]
[Date "2025.04.28"]
[Round "4.5"]
[White "Zhao, Jun"]
[Black "Lin, Weiguo"]
[Result "1-0"]
[Annotator "RC"]
[ECO "B45"]
[WhiteElo "2532"]
[BlackElo "2382"]
[PlyCount "61"]
[EventDate "2025.04.26"]
[EventType "team-tourn"]
[EventCountry "CHN"]
[SourceTitle "playchess.com"]
[Source "ChessBase"]
[SourceQuality "1"]
[TimeControl "5400+30"]

1. e4 {[%emt 0:00:37]} c5 {[%emt 0:00:01]} 2. Nf3 {[%emt 0:01:27]} e6 {[%emt 0:00:36]} 3. d4 {[%emt 0:03:00]} cxd4 {[%emt 0:00:08]} 4. Nxd4 {[%emt 0:00:07]} Nc6 {[%emt 0:00:02]} 5. Be2 {[%emt 0:01:07]} Nf6 {[%emt 0:02:16]} 6. Nc3 {[%emt 0:00:09]} Bb4 {[%emt 0:01:43]} 7. O-O {[%emt 0:00:13]} O-O {[%emt 0:04:29]} 8. Nxc6 {[%emt 0:09:54]} dxc6 {[%emt 0:05:34]} 9. e5 {[%emt 0:00:11]} Bxc3 {[%emt 0:02:53]} 10. bxc3 {[%emt 0:00:10]} Qxd1 {[%emt 0:04:30]} 11. Rxd1 {[%emt 0:00:08]} Nd5 {[%emt 0:00:42]} 12. Bd2 {[%emt 0:01:22]} b6 {[%emt 0:01:13]} 13. c4 {[%emt 0:10:29]} Ne7 {[%emt 0:00:17]} 14. c5 {[%emt 0:00:21]} Bb7 {[%emt 0:15:12]} 15. Rab1 {[%emt 0:07:43]} b5 {[%emt 0:06:05]} 16. Ba5 {[%emt 0:12:54]} Ng6 {[%emt 0:01:56]} 17. c4 {[%emt 0:23:47]} Ba6 {[%emt 0:02:52]} 18. cxb5 {[%emt 0:05:32]} Bxb5 {[%emt 0:00:04]} 19. Bxb5 {[%emt 0:00:07]} cxb5 {[%emt 0:00:05]} 20. c6 {[%emt 0:02:31]} Nxe5 {[%emt 0:02:20]} 21. c7 {[%emt 0:00:04]} Nc6 {[%emt 0:14:25]} 22. Rxb5 {[%emt 0:00:17]} a6 {[%emt 0:00:23]} 23. Rc5 {[%emt 0:00:14]} Nxa5 {[%emt 0:00:09]} 24. Rxa5 {[%emt 0:00:05]} g6 {[%emt 0:00:33]} 25. Rd7 {[%emt 0:04:00]} Kg7 {[%emt 0:00:51]} 26. g4 {[%emt 0:00:42]} h6 {[%emt 0:01:15]} 27. h4 {[%emt 0:00:21]} Rfc8 {[%emt 0:03:10]} 28. Ra3 {[%emt 0:01:04]} e5 {[%emt 0:08:18]} 29. Rf3 {[%emt 0:00:39]} Rf8 {[%emt 0:00:01]} 30. g5 {[%emt 0:00:12]} hxg5 {[%emt 0:00:05]} 31. hxg5 {[%emt 0:00:05]} 1-0

[Event "Chinese Team-ch Men 2025"]
[Site "Zhang Jiakou Hebei"]
[Date "2025.04.28"]
[Round "4.6"]
[White "Yu, Zhe"]
[Black "Xiao, Tong"]
[Result "0-1"]
[Annotator "RC"]
[ECO "C50"]
[WhiteElo "1837"]
[BlackElo "2496"]
[PlyCount "82"]
[EventDate "2025.04.26"]
[EventType "team-tourn"]
[EventCountry "CHN"]
[SourceTitle "playchess.com"]
[Source "ChessBase"]
[SourceQuality "1"]
[TimeControl "5400+30"]

1. e4 {[%emt 0:00:02]} e5 {[%emt 0:00:16]} 2. Nf3 {[%emt 0:00:07]} Nc6 {[%emt 0:00:07]} 3. Bc4 {[%emt 0:00:09]} Be7 {[%emt 0:01:37]} 4. d4 {[%emt 0:00:37]} exd4 {[%emt 0:00:51]} 5. Nxd4 {[%emt 0:00:13]} d6 {[%emt 0:00:11]} 6. O-O {[%emt 0:09:17]} Nf6 {[%emt 0:00:24]} 7. Nc3 {[%emt 0:00:50]} O-O {[%emt 0:00:09]} 8. Nxc6 {[%emt 0:11:28]} bxc6 {[%emt 0:00:03]} 9. Bf4 {[%emt 0:04:12]} Nd7 {[%emt 0:02:07]} 10. Qe2 {[%emt 0:03:28]} Bf6 {[%emt 0:01:04]} 11. Rad1 {[%emt 0:05:09]} Re8 {[%emt 0:07:47]} 12. Bb3 {[%emt 0:05:13]} Nc5 {[%emt 0:14:39]} 13. e5 {[%emt 0:04:08]} Nxb3 {[%emt 0:01:20]} 14. axb3 {[%emt 0:01:09]} Bd7 {[%emt 0:00:14]} 15. Qa6 {[%emt 0:05:51]} Bxe5 {[%emt 0:00:21]} 16. Bxe5 {[%emt 0:01:41]} Rxe5 {[%emt 0:00:08]} 17. Rfe1 {[%emt 0:00:17]} Rg5 {[%emt 0:04:22]} 18. Ra1 {[%emt 0:06:10]} h5 {[%emt 0:03:05]} 19. Ra5 {[%emt 0:18:56]} h4 {[%emt 0:01:51]} 20. Rxg5 {[%emt 0:02:24]} Qxg5 {[%emt 0:00:02]} 21. Qb7 {[%emt 0:05:36]} Rc8 {[%emt 0:00:36]} 22. Ne4 {[%emt 0:04:14]} Qe5 {[%emt 0:08:04]} 23. f4 {[%emt 0:01:50]} Qxf4 {[%emt 0:00:37]} 24. Qxa7 {[%emt 0:00:47]} Re8 {[%emt 0:00:17]} 25. g3 {[%emt 0:01:49]} hxg3 {[%emt 0:01:28]} 26. hxg3 {[%emt 0:00:05]} Qf3 {[%emt 0:00:14]} 27. Qf2 {[%emt 0:03:17]} Qg4 {[%emt 0:00:57]} 28. Nc3 {[%emt 0:00:41]} Rxe1+ {[%emt 0:01:01]} 29. Qxe1 {[%emt 0:00:01]} Qf3 {[%emt 0:00:05]} 30. Qf2 {[%emt 0:00:11]} Qg4 {[%emt 0:02:10]} 31. Qf4 {[%emt 0:00:30]} Qg6 {[%emt 0:00:37]} 32. Qf2 {[%emt 0:01:10]} Bf5 {[%emt 0:00:18]} 33. b4 {[%emt 0:00:22]} Bxc2 {[%emt 0:00:36]} 34. b5 {[%emt 0:00:05]} cxb5 {[%emt 0:02:52]} 35. Nxb5 {[%emt 0:00:03]} c6 {[%emt 0:01:54]} 36. Nxd6 {[%emt 0:00:35]} Qxd6 {[%emt 0:00:10]} 37. Qxc2 {[%emt 0:00:07]} Qxg3+ {[%emt 0:00:04]} 38. Kf1 {[%emt 0:00:40]} Qf4+ {[%emt 0:00:18]} 39. Ke1 {[%emt 0:01:03]} Qh4+ {[%emt 0:00:05]} 40. Kf1 {[%emt 0:00:59]} Qh1+ {[%emt 0:00:07]} 41. Ke2 {[%emt 0:00:33]} Qg2+ {[%emt 0:00:08]} 0-1

[Event "Chinese Team-ch Men 2025"]
[Site "Zhang Jiakou Hebei"]
[Date "2025.04.28"]
[Round "4.7"]
[White "Huang, Renjie"]
[Black "Zhai, Bugong"]
[Result "1-0"]
[Annotator "RC"]
[ECO "B50"]
[WhiteElo "2491"]
[BlackElo "1661"]
[PlyCount "79"]
[EventDate "2025.04.26"]
[EventType "team-tourn"]
[EventCountry "CHN"]
[SourceTitle "playchess.com"]
[Source "ChessBase"]
[SourceQuality "1"]
[TimeControl "5400+30"]

1. e4 {[%emt 0:00:02]} c5 {[%emt 0:00:14]} 2. Nf3 {[%emt 0:00:05]} d6 {[%emt 0:00:10]} 3. Nc3 {[%emt 0:00:22]} Nf6 {[%emt 0:00:15]} 4. Be2 {[%emt 0:00:21]} e5 {[%emt 0:03:25]} 5. Bc4 {[%emt 0:00:22]} Be7 {[%emt 0:01:13]} 6. d3 {[%emt 0:00:33]} Nc6 {[%emt 0:00:21]} 7. a4 {[%emt 0:00:27]} Nd4 {[%emt 0:00:59]} 8. h3 {[%emt 0:01:03]} Be6 {[%emt 0:00:45]} 9. Bg5 {[%emt 0:07:07]} Nd7 {[%emt 0:08:50]} 10. Be3 {[%emt 0:05:32]} Bxc4 {[%emt 0:09:05]} 11. dxc4 {[%emt 0:00:07]} O-O {[%emt 0:00:49]} 12. Nd5 {[%emt 0:04:46]} Nb6 {[%emt 0:08:05]} 13. Nd2 {[%emt 0:01:55]} f5 {[%emt 0:06:55]} 14. c3 {[%emt 0:02:52]} Ne6 {[%emt 0:00:29]} 15. exf5 {[%emt 0:05:11]} Nxd5 {[%emt 0:03:39]} 16. cxd5 {[%emt 0:00:33]} Nf4 {[%emt 0:00:20]} 17. g4 {[%emt 0:11:34]} Ng2+ {[%emt 0:14:23]} 18. Ke2 {[%emt 0:00:07]} Bh4 {[%emt 0:04:49]} 19. Rg1 {[%emt 0:03:08]} Nf4+ {[%emt 0:04:14]} 20. Bxf4 {[%emt 0:02:54]} exf4 {[%emt 0:00:06]} 21. Nf3 {[%emt 0:00:43]} Re8+ {[%emt 0:15:42]} 22. Kf1 {[%emt 0:00:46]} Bf6 {[%emt 0:00:37]} 23. Qd2 {[%emt 0:00:48]} Be5 {[%emt 0:00:13]} 24. Kg2 {[%emt 0:00:31]} g6 {[%emt 0:01:50]} 25. fxg6 {[%emt 0:01:26]} hxg6 {[%emt 0:00:06]} 26. Rge1 {[%emt 0:00:26]} Qf6 {[%emt 0:01:08]} 27. Re4 {[%emt 0:00:15]} g5 {[%emt 0:04:43]} 28. Rae1 {[%emt 0:00:47]} Re7 {[%emt 0:02:01]} 29. Nxe5 {[%emt 0:01:38]} Rxe5 {[%emt 0:00:08]} 30. Rxe5 {[%emt 0:00:05]} dxe5 {[%emt 0:00:06]} 31. d6 {[%emt 0:00:21]} Qe6 {[%emt 0:04:15]} 32. d7 {[%emt 0:00:53]} Rd8 {[%emt 0:00:13]} 33. Qe2 {[%emt 0:00:05]} Qd5+ {[%emt 0:03:21]} 34. Kg1 {[%emt 0:00:27]} Rxd7 {[%emt 0:00:27]} 35. Qxe5 {[%emt 0:00:11]} Kf7 {[%emt 0:01:49]} 36. Qe8+ {[%emt 0:00:48]} Kf6 {[%emt 0:00:55]} 37. Qh8+ {[%emt 0:01:19]} Kg6 {[%emt 0:01:47]} 38. Re5 {[%emt 0:00:16]} Qd1+ {[%emt 0:00:27]} 39. Kh2 {[%emt 0:00:03]} Rg7 {[%emt 0:00:30]} 40. Re6+ {[%emt 0:00:09]} 1-0

[Event "Chinese Team-ch Men 2025"]
[Site "Zhang Jiakou Hebei"]
[Date "2025.04.28"]
[Round "4.9"]
[White "Yu, Shaoteng"]
[Black "Wang, Yue"]
[Result "1/2-1/2"]
[Annotator "TA"]
[ECO "B10"]
[WhiteElo "2480"]
[BlackElo "2640"]
[PlyCount "69"]
[EventDate "2025.04.26"]
[EventType "team-tourn"]
[EventCountry "CHN"]
[SourceTitle "playchess.com"]
[Source "ChessBase"]
[SourceQuality "1"]
[TimeControl "5400+30"]

{[%evp 9,69,11,27,15,21,-17,-17,-22,-25,-17,-16,-32,-37,-41,-34,-41,0,0,35,28,31,28,31,30,29,0,0,0,0,-2,-2,-14,-12,-14,-5,-9,0,0,16,14,14,14,17,14,14,14,14,14,14,14,14,14,14,14,14,14,0,0,0,0,0,0]} 1. e4 {[%emt 0:00:02]} c6 {[%emt 0:00:09]} 2. Nf3 {[%emt 0:00:26]} d5 {[%emt 0:00:19]} 3. exd5 {[%emt 0:00:07]} cxd5 {[%emt 0:00:12]} 4. Ne5 {[%emt 0:00:08]} e6 {[%emt 0:11:45]} 5. d4 {[%emt 0:00:40]} Nd7 {[%emt 0:03:11]} 6. Bd3 {[%emt 0:03:25] B10: Caro-Kann: 2 d3 and 2 c4.} Bd6 {[%emt 0:12:49]} 7. Nxd7 $146 {[%emt 0:05:05]} (7. f4 Ndf6 8. O-O Ne7 9. Qe2 a6 10. c3 b5 11. a3 O-O 12. Nd2 Ne8 13. Ndf3 {0-1 Hernandez Sanchez,E (2282)-Mirzoev,A (2541) San Sebastian op 20th 2010 (8)}) 7... Bxd7 {[%emt 0:00:15]} 8. c3 {[%emt 0:00:22]} Ne7 {[%emt 0:03:11]} 9. Qh5 {[%emt 0:04:37][%cal Oe1g1]} Qc7 {[%emt 0:05:05]} 10. Bg5 {[%emt 0:01:10][%cal Oe1g1]} Nf5 {[%emt 0:05:26]} (10... Qb6 11. Bxe7 Kxe7 12. Qe2 Kf8) 11. Nd2 {[%emt 0:07:03]} h6 {[%emt 0:19:55]} 12. Nf3 {[%emt 0:02:12]} a6 {[%emt 0:12:12]} (12... Rg8 $5 13. Bd2 g6 $11) 13. O-O-O {[%emt 0:09:26][%cal Ba1d1,Bd1d3,Bd3f3,Bf3f4,Bf4h4][%mdl 32]} g6 {[%emt 0:09:02]} 14. Qh3 {[%emt 0:00:24]} Bf4+ {[%emt 0:00:05]} 15. Bxf4 {[%emt 0:03:52]} Qxf4+ {[%emt 0:00:06]} 16. Kb1 {[%emt 0:00:41]} Bb5 {[%emt 0:03:19]} 17. Rhe1 {[%emt 0:02:55]} (17. Bxf5 {simplifies} Qxf5+ 18. Qxf5 gxf5 19. Rhe1) 17... Bxd3+ {[%emt 0:00:58] The position is equal.} 18. Rxd3 {[%emt 0:01:58]} h5 {[%emt 0:04:25]} 19. g3 {[%emt 0:07:36]} Qc7 {[%emt 0:00:10]} 20. Nh4 {[%emt 0:03:01]} O-O-O {[%emt 0:01:49]} 21. Nxf5 {[%emt 0:07:36]} gxf5 {[%emt 0:00:08]} 22. Rf3 {[%emt 0:00:13]} Rdg8 {[%emt 0:01:21][%cal Oh5h4]} 23. Rf4 $1 {[%emt 0:00:59]} Qd8 {[%emt 0:01:56][%cal Oh5h4] Not much happening anymore} 24. Rh4 {[%emt 0:05:07]} Qg5 {[%emt 0:00:05]} 25. Qf1 {[%emt 0:00:40]} Qf6 {[%emt 0:02:43]} 26. h3 {[%emt 0:00:39]} Kb8 {[%emt 0:01:08]} 27. Qe2 {[%emt 0:03:31]} Qg5 {[%emt 0:00:23]} 28. Qf3 {[%emt 0:02:53]} Ka7 {[%emt 0:00:40]} 29. Re3 {[%emt 0:01:28]} Rc8 {[%emt 0:00:11]} 30. a3 {[%emt 0:00:18]} Rc6 {[%emt 0:00:46]} 31. Ka2 {[%emt 0:00:54]} Rb6 {[%emt 0:01:09]} 32. Qe2 {[%emt 0:00:32]} Rc6 {[%emt 0:00:15]} 33. Qf3 {[%emt 0:01:51]} Rcc8 {[%emt 0:00:09]} 34. Qe2 {[%emt 0:00:15]} Rc6 {[%emt 0:00:13]} 35. Qf3 {[%emt 0:00:16] Weighted Error Value: White=0.04 (flawless) /Black=0.06 (flawless)   Inaccurate:     	White=2     	Black=2      OK:         	White=9     	Black=10     Best:        	---       	Black=1      Strong:       	White=1     	---} 1/2-1/2

[Event "Chinese Team-ch Men 2025"]
[Site "Zhang Jiakou Hebei"]
[Date "2025.04.28"]
[Round "4.10"]
[White "Dai, Changren"]
[Black "Jiang, Haochen"]
[Result "1/2-1/2"]
[Annotator "RC"]
[ECO "B07"]
[WhiteElo "2527"]
[BlackElo "2441"]
[PlyCount "137"]
[EventDate "2025.04.26"]
[EventType "team-tourn"]
[EventCountry "CHN"]
[SourceTitle "playchess.com"]
[Source "ChessBase"]
[SourceQuality "1"]
[TimeControl "5400+30"]

1. e4 {[%emt 0:00:07]} e5 {[%emt 0:01:46]} 2. Nf3 {[%emt 0:00:08]} Nf6 {[%emt 0:00:13]} 3. Nc3 {[%emt 0:00:05]} Nc6 {[%emt 0:00:06]} 4. g3 {[%emt 0:00:06]} g6 {[%emt 0:01:43]} 5. d4 {[%emt 0:09:51]} exd4 {[%emt 0:00:56]} 6. Nxd4 {[%emt 0:00:05]} Bg7 {[%emt 0:00:12]} 7. Be3 {[%emt 0:02:22]} O-O {[%emt 0:01:17]} 8. Bg2 {[%emt 0:01:19]} d6 {[%emt 0:08:40]} 9. h3 {[%emt 0:00:31]} Re8 {[%emt 0:00:38]} 10. O-O {[%emt 0:02:16]} Bd7 {[%emt 0:00:47]} 11. Qd2 {[%emt 0:16:55]} Qc8 {[%emt 0:17:25]} 12. Kh2 {[%emt 0:04:20]} Nxd4 {[%emt 0:11:53]} 13. Bxd4 {[%emt 0:00:13]} Bc6 {[%emt 0:00:27]} 14. Rae1 {[%emt 0:05:56]} b5 {[%emt 0:02:40]} 15. Re3 {[%emt 0:10:21]} b4 {[%emt 0:13:16]} 16. Nd5 {[%emt 0:00:43]} Bxd5 {[%emt 0:00:10]} 17. exd5 {[%emt 0:00:10]} Qa6 {[%emt 0:01:01]} 18. Rfe1 {[%emt 0:05:39]} Rxe3 {[%emt 0:01:18]} 19. Rxe3 {[%emt 0:01:09]} Qc4 {[%emt 0:01:12]} 20. Kg1 {[%emt 0:05:29]} Qxa2 {[%emt 0:05:02]} 21. b3 {[%emt 0:10:52]} Qa5 {[%emt 0:03:05]} 22. Qd3 {[%emt 0:03:56]} Re8 {[%emt 0:05:35]} 23. Qc4 {[%emt 0:01:50]} Rxe3 {[%emt 0:08:54]} 24. Bxe3 {[%emt 0:00:01]} Ne8 {[%emt 0:00:01]} 25. Qc6 {[%emt 0:04:35]} Kf8 {[%emt 0:00:23]} 26. Bf1 {[%emt 0:00:11]} Qa1 {[%emt 0:02:20]} 27. Kg2 {[%emt 0:00:54]} Qc3 {[%emt 0:00:38]} 28. Bxa7 {[%emt 0:04:35]} Qxc6 {[%emt 0:02:41]} 29. dxc6 {[%emt 0:00:02]} Ke7 {[%emt 0:00:02]} 30. Bc4 {[%emt 0:01:36]} Bc3 {[%emt 0:00:45]} 31. Kf3 {[%emt 0:01:59]} Nf6 {[%emt 0:00:32]} 32. Ke3 {[%emt 0:02:16]} d5 {[%emt 0:02:38]} 33. Bc5+ {[%emt 0:00:02]} Ke6 {[%emt 0:00:01]} 34. Bd3 {[%emt 0:02:14]} Ne4 {[%emt 0:04:11]} 35. Bxe4 {[%emt 0:01:29]} dxe4 {[%emt 0:00:01]} 36. Kxe4 {[%emt 0:00:07]} f5+ {[%emt 0:00:09]} 37. Kd3 {[%emt 0:00:03]} Kd5 {[%emt 0:00:03]} 38. Be3 {[%emt 0:01:55]} Kxc6 {[%emt 0:03:09]} 39. Bf4 {[%emt 0:01:20]} Be1 {[%emt 0:00:40]} 40. f3 {[%emt 0:00:15]} Kd5 {[%emt 0:03:27]} 41. Bxc7 {[%emt 0:00:08]} h5 {[%emt 0:00:29]} 42. Bf4 {[%emt 0:02:43]} Bf2 {[%emt 0:00:14]} 43. Ke2 {[%emt 0:00:13]} Bc5 {[%emt 0:00:06]} 44. Be3 {[%emt 0:00:19]} Bd6 {[%emt 0:00:16]} 45. Bf2 {[%emt 0:00:01]} g5 {[%emt 0:01:26]} 46. g4 {[%emt 0:01:27]} fxg4 {[%emt 0:00:22]} 47. fxg4 {[%emt 0:00:02]} hxg4 {[%emt 0:00:31]} 48. hxg4 {[%emt 0:00:01]} Ke4 {[%emt 0:00:34]} 49. Be3 {[%emt 0:00:03]} Be7 {[%emt 0:00:25]} 50. Kf2 {[%emt 0:01:02]} Bf6 {[%emt 0:00:37]} 51. Bd2 {[%emt 0:00:05]} Be7 {[%emt 0:00:10]} 52. Kg2 {[%emt 0:00:06]} Ke5 {[%emt 0:00:50]} 53. Kf3 {[%emt 0:01:36]} Kd4 {[%emt 0:00:03]} 54. Kf2 {[%emt 0:00:50]} Bf8 {[%emt 0:00:48]} 55. Ke2 {[%emt 0:00:38]} Be7 {[%emt 0:00:02]} 56. Be3+ {[%emt 0:00:38]} Ke4 {[%emt 0:00:27]} 57. Kf2 {[%emt 0:00:01]} Bf6 {[%emt 0:00:22]} 58. Bc5 {[%emt 0:00:15]} Bd4+ {[%emt 0:01:14]} 59. Bxd4 {[%emt 0:00:02]} Kxd4 {[%emt 0:00:01]} 60. Ke2 {[%emt 0:00:09]} Ke4 {[%emt 0:00:05]} 61. Kd1 {[%emt 0:01:46]} Kf4 {[%emt 0:00:15]} 62. c4 {[%emt 0:00:01]} Kxg4 {[%emt 0:00:20]} 63. Ke2 {[%emt 0:00:05]} Kf4 {[%emt 0:00:15]} 64. Kf2 {[%emt 0:00:06]} g4 {[%emt 0:00:35]} 65. Kg2 {[%emt 0:00:05]} g3 {[%emt 0:01:03]} 66. Kg1 {[%emt 0:00:12]} Ke5 {[%emt 0:00:06]} 67. Kg2 {[%emt 0:00:05]} Kf4 {[%emt 0:00:03]} 68. Kg1 {[%emt 0:00:04]} Ke5 {[%emt 0:00:05]} 69. Kg2 {[%emt 0:00:43]} 1/2-1/2